fUST/lending_fUST_20250905
["ID","MTS","AMOUNT","RATE_DAILY","PERIOD"]
[383601090,1757022648774,-472.43,0.00020472,2]
[383601092,1757022648786,-480.0,0.00020472,2]
[383601094,1757022648798,-516.58,0.00020472,2]
[383601096,1757022648809,-2000.0,0.000205,2]
[383601099,1757022648821,-453.77403871,0.00020601,4]
[383601101,1757022648832,-500.0,0.00020691,2]
[383601103,1757022648843,-660.0,0.00020694,2]
[383601105,1757022648854,-480.0,0.0002073,2]
[383601107,1757022648865,-792.43,0.00020745,2]
[383601110,1757022648877,-480.0,0.00020745,2]
[383601112,1757022648888,-421.55,0.00020746,2]
[383601114,1757022648900,-480.0,0.00020746,2]
[383601116,1757022648911,-516.58,0.00020746,2]
[383601118,1757022648925,-800.0,0.00020779,2]
[383601121,1757022648937,-153.103015,0.00020786,2]
[383601123,1757022648948,-151.0,0.000208,4]
[383601125,1757022648960,-151.0,0.000208,3]
[383601127,1757022648972,-151.0,0.000208,3]
[383601129,1757022648984,-162.80219612,0.00020872,2]
[383601131,1757022648996,-251.88527613,0.000209,2]
[383601134,1757022649008,-160.0,0.00020955,4]
[383601136,1757022649020,-500.0,0.00020994,2]
[383601138,1757022649031,-3000.0,0.00021,2]
[383601140,1757022649042,-4000.0,0.00021,4]
[383601142,1757022649055,-168.0,0.00021,2]
[383601145,1757022649066,-480.0,0.00021004,2]
[383601147,1757022649078,-3000.0,0.0002101,2]
[383601149,1757022649092,-792.43,0.00021019,2]
[383601152,1757022649104,-480.0,0.00021019,2]
[383601154,1757022649117,-3000.0,0.0002102,2]
[383601156,1757022649128,-480.0,0.0002102,2]
[383601158,1757022649140,-516.58,0.0002102,2]
[383601161,1757022649151,-3000.0,0.0002103,2]
[383601163,1757022649162,-3000.0,0.0002104,2]
[383601165,1757022649171,-3000.0,0.0002105,2]
[383601167,1757022649181,-3000.0,0.0002106,2]
[383601169,1757022649191,-3000.0,0.0002107,2]
[383601171,1757022649201,-3000.0,0.0002108,2]
[383601173,1757022649211,-3000.0,0.0002109,2]
[383601175,1757022649221,-3000.0,0.000211,2]
[383601177,1757022649230,-2965.23127379,0.0002111,2]
[383601179,1757022649243,-34.76872621,0.0002111,2]
[383601181,1757022649253,-3000.0,0.0002112,2]
[383601183,1757022649263,-3000.0,0.0002113,2]
[383601185,1757022649273,-3000.0,0.0002114,2]
[383601187,1757022649282,-3000.0,0.0002115,2]
[383601189,1757022649292,-3000.0,0.0002116,2]
[383601191,1757022649302,-3000.0,0.00021164,2]
[383601193,1757022649312,-3000.0,0.0002117,2]
[383601195,1757022649321,-3000.0,0.0002118,2]
[383601197,1757022649331,-3000.0,0.0002119,2]
[383601199,1757022649340,-3000.0,0.000212,2]
[383601201,1757022649349,-3000.0,0.0002121,2]
[383601202,1757022649359,-3000.0,0.0002122,2]
[383601205,1757022649368,-153.525751,0.0002123,3]
[383601206,1757022649378,-3000.0,0.0002123,2]
[383601208,1757022649388,-1000.0,0.00021239,2]
[383601210,1757022649397,-4257.240485,0.0002124,2]
[383601212,1757022649407,-760.0,0.00021242,2]
[383601214,1757022649416,-168.0,0.00021257,2]
[383601216,1757022649425,-437.14,0.00021278,2]
[383601218,1757022649435,-151.0,0.0002129,2]
[383601220,1757022649444,-792.43,0.00021293,2]
[383601222,1757022649454,-480.0,0.00021293,2]
[383601224,1757022649464,-480.0,0.00021294,2]
[383601226,1757022649474,-131.17276666,0.00021294,2]
[383601271,1757022649911,-480.0,0.00018828,2]
[383601273,1757022649921,-169.64,0.00019102,2]
[383601275,1757022649936,-1623.955945,0.000211,2]
[383601277,1757022649946,-385.40723334,0.00021294,2]
[383601279,1757022649956,-975.0,0.00021343,2]
[383601281,1757022649966,-633.0,0.00021343,2]
[383601283,1757022649978,-2153.0,0.00021343,2]
[383601285,1757022649990,-409.0,0.00021343,2]
[383601287,1757022649999,-409.0,0.00021343,2]
[383601289,1757022650009,-151.0,0.000214,4]
[383601291,1757022650018,-151.0,0.000214,4]
[383601293,1757022650028,-151.0,0.000214,4]
[383601295,1757022650039,-500.0,0.00021416,2]
[383601297,1757022650048,-500.0,0.00021416,2]
[383601299,1757022650058,-500.0,0.00021416,2]
[383601301,1757022650067,-560.83270072,0.00021421,2]
[383601303,1757022650076,-800.0,0.00021489,2]
[383601305,1757022650085,-486.26727103,0.0002149,2]
[383602864,1757022678759,499.8712877,0.00014,2]
[383602872,1757022849231,555.373455,0.00013562,2]
[383602873,1757022871769,555.373455,0.00013562,2]
[383602874,1757022894153,555.373455,0.00013562,2]
[383602875,1757022917206,555.373455,0.00013562,2]
[383602876,1757022940606,555.373455,0.00013562,2]
[383602877,1757022963093,555.373455,0.00013562,2]
[383602878,1757022986374,372.16067676,0.00013562,2]
[383602882,1757023276141,300.0,0.00013562,2]
[383602885,1757023495062,298.71456792,0.00013562,2]
[383602889,1757023640082,-555.373455,0.00013699,2]
[383602890,1757023640105,-122.1060035,0.0001499,2]
[383602899,1757023750074,-470.4,0.00013699,2]
[383602900,1757023751162,-81.482442,0.00013699,2]
[383602944,1757023832505,-300.0,0.00015646,2]
[383602946,1757023832515,-417.15472785,0.00015646,2]
[383602948,1757023832525,-217.5338025,0.00015646,2]
[383602950,1757023832534,-160.0,0.00015646,2]
[383602951,1757023832543,-530.40833076,0.00015646,2]
[383602953,1757023832553,-232.93421481,0.00015646,2]
[383602955,1757023832563,-846.4110323,0.00015647,2]
[383602957,1757023832572,-160.0,0.00015647,2]
[383602959,1757023832582,-203.15181488,0.00015647,2]
[383602961,1757023832591,-189.52293528,0.00015697,2]
[383602963,1757023832601,-480.0,0.00015796,2]
[383602964,1757023832610,-480.0,0.00015796,2]
[383602966,1757023832620,-480.0,0.00015796,2]
[383602968,1757023832629,-480.0,0.00015796,2]
[383602970,1757023832638,-480.0,0.00015796,2]
[383602972,1757023832648,-480.0,0.00015796,2]
[383602974,1757023832658,-480.0,0.00015796,2]
[383602976,1757023832668,-480.0,0.00015796,2]
[383602978,1757023832678,-480.0,0.00015796,2]
[383602979,1757023832687,-447.65,0.00015796,2]
[383602981,1757023832696,-480.0,0.00015796,2]
[383602983,1757023832706,-480.0,0.00015796,2]
[383602985,1757023832715,-480.0,0.00015796,2]
[383602987,1757023832725,-480.0,0.00015796,2]
[383602989,1757023832734,-480.0,0.00015796,2]
[383602991,1757023832743,-480.0,0.00015796,2]
[383602992,1757023832752,-480.0,0.00015796,2]
[383602994,1757023832761,-480.0,0.00015796,2]
[383602996,1757023832770,-480.0,0.00015796,2]
[383602998,1757023832779,-480.0,0.00015796,2]
[383603000,1757023832788,-480.0,0.00015796,2]
[383603002,1757023832798,-480.0,0.00015796,2]
[383603003,1757023832807,-480.0,0.00015796,2]
[383603005,1757023832816,-480.0,0.00015796,2]
[383603007,1757023832825,-480.0,0.00015796,2]
[383603009,1757023832835,-480.0,0.00015796,2]
[383603011,1757023832844,-480.0,0.00015796,2]
[383603013,1757023832853,-480.0,0.00015796,2]
[383603015,1757023832862,-480.0,0.00015796,2]
[383603017,1757023832871,-480.0,0.00015796,2]
[383603019,1757023832880,-480.0,0.00015796,2]
[383603021,1757023832890,-480.0,0.00015796,2]
[383603022,1757023832900,-480.0,0.00015796,2]
[383603024,1757023832909,-480.0,0.00015796,2]
[383603026,1757023832919,-480.0,0.00015796,2]
[383603028,1757023832928,-480.0,0.00015796,2]
[383603030,1757023832938,-480.0,0.00015796,2]
[383603032,1757023832947,-480.0,0.00015796,2]
[383603033,1757023832956,-480.0,0.00015796,2]
[383603035,1757023832965,-480.0,0.00015796,2]
[383603037,1757023832975,-480.0,0.00015796,2]
[383603039,1757023832984,-480.0,0.00015796,2]
[383603041,1757023832993,-480.0,0.00015797,2]
[383603043,1757023833003,-480.0,0.00015797,2]
[383603045,1757023833013,-480.0,0.00015797,2]
[383603047,1757023833022,-480.0,0.00015797,2]
[383603049,1757023833031,-480.0,0.00015797,2]
[383603051,1757023833041,-480.0,0.00015797,2]
[383603053,1757023833054,-480.0,0.00015797,2]
[383603055,1757023833064,-480.0,0.00015797,2]
[383603057,1757023833073,-480.0,0.00015797,2]
[383603058,1757023833083,-480.0,0.00015797,2]
[383603060,1757023833092,-480.0,0.00015797,2]
[383603062,1757023833102,-480.0,0.00015797,2]
[383603064,1757023833112,-480.0,0.00015797,2]
[383603066,1757023833121,-480.0,0.00015797,2]
[383603068,1757023833131,-480.0,0.00015797,2]
[383603070,1757023833140,-266.26669539,0.00015797,2]
[383603072,1757023833150,-480.0,0.00015797,2]
[383603073,1757023833159,-481.13981514,0.00015797,2]
[383603075,1757023833168,-480.0,0.00015797,2]
[383603077,1757023833177,-480.0,0.00015797,2]
[383603079,1757023833186,-480.0,0.00015797,2]
[383603081,1757023833196,-480.0,0.00015797,2]
[383603083,1757023833205,-480.0,0.00015797,2]
[383603085,1757023833215,-480.0,0.00015797,2]
[383603087,1757023833227,-405.45775409,0.00015797,2]
[383603089,1757023833237,-295.39,0.00015797,2]
[383603090,1757023833246,-480.0,0.00015797,2]
[383603092,1757023833256,-480.0,0.00015797,2]
[383603094,1757023833268,-518.02195018,0.00015797,2]
[383603096,1757023833278,-480.0,0.00015797,2]
[383603098,1757023833288,-480.0,0.00015797,2]
[383603100,1757023833298,-481.62642679,0.00015797,2]
[383603102,1757023833307,-480.0,0.00015797,2]
[383603104,1757023833317,-480.0,0.00015797,2]
[383603106,1757023833327,-480.0,0.00015797,2]
[383603107,1757023833337,-480.0,0.00015797,2]
[383603109,1757023833347,-480.0,0.00015797,2]
[383603111,1757023833357,-480.0,0.00015797,2]
[383603113,1757023833366,-480.0,0.00015797,2]
[383603115,1757023833376,-480.0,0.00015797,2]
[383603117,1757023833385,-481.48598051,0.00015797,2]
[383603119,1757023833394,-480.0,0.00015797,2]
[383603121,1757023833404,-480.0,0.00015797,2]
[383603135,1757023833414,-480.0,0.00015797,2]
[383603137,1757023833562,-480.0,0.00015797,2]
[383603139,1757023833573,-480.0,0.00015797,2]
[383603141,1757023833583,-480.0,0.00015797,2]
[383603143,1757023833592,-480.0,0.00015797,2]
[383603145,1757023833602,-480.0,0.00015797,2]
[383603147,1757023833613,-296.00705477,0.00015797,2]
[383603149,1757023833623,-480.0,0.00015797,2]
[383603151,1757023833632,-480.0,0.00015797,2]
[383603153,1757023833642,-152.53362789,0.00015797,2]
[383603155,1757023833652,-480.0,0.00015797,2]
[383603157,1757023833661,-480.0,0.00015797,2]
[383603159,1757023833670,-218.34801598,0.00015797,2]
[383603161,1757023833680,-480.0,0.00015797,2]
[383603163,1757023833689,-480.0,0.00015797,2]
[383603165,1757023833698,-480.0,0.00015797,2]
[383603166,1757023833708,-480.0,0.00015797,2]
[383603168,1757023833717,-480.0,0.00015797,2]
[383603170,1757023833727,-587.31,0.00015797,2]
[383603172,1757023833739,-480.0,0.00015797,2]
[383603174,1757023833749,-480.0,0.00015797,2]
[383603176,1757023833759,-480.0,0.00015797,2]
[383603178,1757023833768,-480.0,0.00015797,2]
[383603180,1757023833778,-480.0,0.00015797,2]
[383603182,1757023833787,-480.0,0.00015797,2]
[383603184,1757023833796,-480.0,0.00015797,2]
[383603186,1757023833806,-480.0,0.00015797,2]
[383603188,1757023833815,-480.0,0.00015797,2]
[383603190,1757023833824,-480.0,0.00015797,2]
[383603191,1757023833833,-480.0,0.00015797,2]
[383603193,1757023833843,-453.15,0.00015797,2]
[383603195,1757023833852,-480.0,0.00015797,2]
[383603197,1757023833862,-480.0,0.00015797,2]
[383603199,1757023833871,-485.31157402,0.00015797,2]
[383603201,1757023833880,-480.0,0.00015797,2]
[383603203,1757023833889,-480.0,0.00015797,2]
[383603205,1757023833899,-480.0,0.00015797,2]
[383603207,1757023833908,-480.0,0.00015797,2]
[383603209,1757023833918,-480.0,0.00015797,2]
[383603211,1757023833927,-480.0,0.00015797,2]
[383603212,1757023833936,-480.0,0.00015797,2]
[383603214,1757023833946,-480.0,0.00015797,2]
[383603216,1757023833955,-480.0,0.00015797,2]
[383603218,1757023833964,-480.0,0.00015797,2]
[383603220,1757023833974,-480.0,0.00015797,2]
[383603222,1757023833984,-480.0,0.00015797,2]
[383603224,1757023833993,-480.0,0.00015797,2]
[383603226,1757023834003,-480.0,0.00015797,2]
[383603228,1757023834012,-416.68614184,0.00015797,2]
[383603230,1757023834021,-480.0,0.00015797,2]
[383603232,1757023834031,-480.0,0.00015797,2]
[383603234,1757023834040,-480.0,0.00015797,2]
[383603236,1757023834049,-480.0,0.00015797,2]
[383603237,1757023834058,-480.0,0.00015797,2]
[383603239,1757023834068,-480.0,0.00015797,2]
[383603241,1757023834077,-480.0,0.00015797,2]
[383603243,1757023834087,-278.47138656,0.00015797,2]
[383603245,1757023834096,-480.0,0.00015798,2]
[383603247,1757023834105,-196.65,0.00015798,2]
[383603249,1757023834114,-480.0,0.00015798,2]
[383603251,1757023834123,-480.0,0.00015798,2]
[383603253,1757023834132,-780.91,0.00015798,2]
[383603255,1757023834141,-480.0,0.00015798,2]
[383603257,1757023834150,-480.0,0.00015798,2]
[383603258,1757023834160,-480.0,0.00015798,2]
[383603260,1757023834169,-480.0,0.00015799,2]
[383603262,1757023834178,-480.0,0.00015799,2]
[383603264,1757023834187,-480.0,0.00015799,2]
[383603266,1757023834196,-480.0,0.00015799,2]
[383603268,1757023834205,-480.0,0.00015799,2]
[383603270,1757023834215,-236.05,0.00015799,2]
[383603272,1757023834224,-1084.9,0.00015813,2]
[383603274,1757023834233,-500.0,0.00015814,2]
[383603276,1757023834242,-480.0,0.00015814,2]
[383603278,1757023834251,-304.00147388,0.00015971,2]
[383603279,1757023834261,-500.0,0.00016069,2]
[383603281,1757023834271,-176.06753744,0.00016069,2]
[383603283,1757023834280,-500.0,0.00016069,2]
[383603285,1757023834289,-500.0,0.00016069,2]
[383603287,1757023834299,-309.14877452,0.00016069,2]
[383603289,1757023834309,-528.24130685,0.00016069,2]
[383603291,1757023834319,-480.0,0.0001607,2]
[383603293,1757023834329,-480.0,0.0001607,2]
[383603295,1757023834339,-480.0,0.0001607,2]
[383603297,1757023834348,-480.0,0.0001607,2]
[383603299,1757023834357,-480.0,0.0001607,2]
[383603301,1757023834366,-480.0,0.0001607,2]
[383603303,1757023834376,-480.0,0.0001607,2]
[383603305,1757023834386,-480.0,0.0001607,2]
[383603307,1757023834395,-480.0,0.0001607,2]
[383603308,1757023834404,-480.0,0.0001607,2]
[383603310,1757023834414,-480.0,0.0001607,2]
[383603312,1757023834423,-480.0,0.0001607,2]
[383603314,1757023834432,-480.0,0.0001607,2]
[383603316,1757023834441,-480.0,0.0001607,2]
[383603318,1757023834451,-480.0,0.0001607,2]
[383603320,1757023834460,-480.0,0.0001607,2]
[383603322,1757023834469,-497.16,0.0001607,2]
[383603324,1757023834478,-480.0,0.0001607,2]
[383603326,1757023834487,-480.0,0.0001607,2]
[383603327,1757023834496,-480.0,0.0001607,2]
[383603329,1757023834506,-480.0,0.0001607,2]
[383603331,1757023834515,-480.0,0.0001607,2]
[383603333,1757023834524,-480.0,0.0001607,2]
[383603335,1757023834534,-480.0,0.0001607,2]
[383603337,1757023834544,-480.0,0.0001607,2]
[383603339,1757023834553,-480.0,0.0001607,2]
[383603341,1757023834562,-480.0,0.0001607,2]
[383603343,1757023834571,-264.17963581,0.0001607,2]
[383603345,1757023834581,-480.0,0.0001607,2]
[383603347,1757023834591,-480.0,0.0001607,2]
[383603349,1757023834600,-480.0,0.0001607,2]
[383603350,1757023834610,-480.0,0.0001607,2]
[383603352,1757023834619,-480.0,0.0001607,2]
[383603354,1757023834631,-480.0,0.0001607,2]
[383603356,1757023834640,-480.0,0.0001607,2]
[383603358,1757023834649,-480.0,0.0001607,2]
[383603360,1757023834659,-480.0,0.0001607,2]
[383603362,1757023834668,-252.20116039,0.00016071,2]
[383603364,1757023834678,-480.0,0.00016071,2]
[383603366,1757023834687,-480.0,0.00016071,2]
[383603367,1757023834697,-480.0,0.00016071,2]
[383603368,1757023834706,-480.0,0.00016071,2]
[383603369,1757023834716,-480.0,0.00016071,2]
[383603370,1757023834725,-414.38807977,0.00016071,2]
[383603371,1757023834735,-480.0,0.00016071,2]
[383603372,1757023834744,-480.0,0.00016071,2]
[383603373,1757023834753,-480.0,0.00016071,2]
[383603374,1757023834763,-480.0,0.00016071,2]
[383603375,1757023834772,-480.0,0.00016071,2]
[383603376,1757023834781,-480.0,0.00016071,2]
[383603377,1757023834790,-480.0,0.00016071,2]
[383603378,1757023834799,-308.45854516,0.00016071,2]
[383603379,1757023834808,-480.0,0.00016071,2]
[383603380,1757023834818,-480.0,0.00016071,2]
[383603381,1757023834827,-480.0,0.00016071,2]
[383603382,1757023834836,-480.0,0.00016071,2]
[383603383,1757023834846,-480.0,0.00016071,2]
[383603384,1757023834855,-480.0,0.00016071,2]
[383603385,1757023834864,-480.0,0.00016071,2]
[383603386,1757023834874,-480.0,0.00016071,2]
[383603387,1757023834883,-480.0,0.00016071,2]
[383603388,1757023834892,-480.0,0.00016071,2]
[383603389,1757023834901,-480.0,0.00016071,2]
[383603390,1757023834911,-480.0,0.00016071,2]
[383603391,1757023834920,-480.0,0.00016071,2]
[383603392,1757023834929,-480.0,0.00016071,2]
[383603393,1757023834938,-480.0,0.00016071,2]
[383603394,1757023834948,-480.0,0.00016071,2]
[383603395,1757023834957,-587.31,0.00016071,2]
[383603396,1757023834966,-480.0,0.00016071,2]
[383603397,1757023834975,-480.0,0.00016071,2]
[383603398,1757023834984,-480.0,0.00016071,2]
[383603399,1757023834994,-480.0,0.00016071,2]
[383603400,1757023835003,-480.0,0.00016071,2]
[383603401,1757023835013,-480.0,0.00016071,2]
[383603402,1757023835022,-480.0,0.00016071,2]
[383603403,1757023835031,-480.0,0.00016071,2]
[383603404,1757023835041,-480.0,0.00016071,2]
[383603405,1757023835050,-480.0,0.00016071,2]
[383603406,1757023835060,-480.0,0.00016071,2]
[383603407,1757023835069,-480.0,0.00016071,2]
[383603408,1757023835080,-480.0,0.00016071,2]
[383603409,1757023835089,-480.0,0.00016071,2]
[383603410,1757023835098,-480.0,0.00016071,2]
[383603411,1757023835108,-480.0,0.00016071,2]
[383603412,1757023835117,-480.0,0.00016071,2]
[383603413,1757023835126,-480.0,0.00016071,2]
[383603414,1757023835137,-495.94,0.00016071,2]
[383603416,1757023835146,-480.0,0.00016071,2]
[383603417,1757023835156,-480.0,0.00016071,2]
[383603420,1757023835165,-627.26,0.00016071,2]
[383603421,1757023835174,-480.0,0.00016071,2]
[383603423,1757023835183,-480.0,0.00016072,2]
[383603425,1757023835192,-480.0,0.00016072,2]
[383603426,1757023835201,-480.0,0.00016072,2]
[383603427,1757023835211,-780.91,0.00016072,2]
[383603428,1757023835220,-534.38751074,0.00016072,2]
[383603429,1757023835230,-480.0,0.00016072,2]
[383603430,1757023835239,-480.0,0.00016072,2]
[383603431,1757023835249,-224.08,0.00016073,2]
[383603432,1757023835259,-3.07507285,0.00016073,2]
[383603459,1757023838473,-846.4110323,0.00015646,2]
[383603461,1757023838483,-291.7889678,0.00015797,2]
[383603463,1757023838494,-188.2110322,0.00015797,2]
[383603465,1757023838504,-480.0,0.00016071,2]
[383603467,1757023838513,-476.92492715,0.00016073,2]
[383603469,1757023838522,-61.86404065,0.00016073,2]
[383603471,1757023838533,-418.13595935,0.00016073,2]
[383603473,1757023838543,-180.83220284,0.00016103,2]
[383603475,1757023838552,-480.0,0.00016344,2]
[383603477,1757023838561,-480.0,0.00016344,2]
[383603479,1757023838569,-349.19819889,0.00016344,2]
[383603481,1757023838589,-130.80180111,0.00016344,2]
[383603482,1757023838599,-164.63379218,0.00016344,2]
[383603483,1757023838610,-315.36620782,0.00016344,2]
[383603484,1757023838620,-467.58,0.00016344,2]
[383603485,1757023838631,-480.0,0.00016344,2]
[383603486,1757023838641,-480.0,0.00016344,2]
[383603487,1757023838653,-480.0,0.00016344,2]
[383603488,1757023838663,-480.0,0.00016344,2]
[383603489,1757023838672,-480.0,0.00016344,2]
[383603490,1757023838682,-480.0,0.00016344,2]
[383603491,1757023838691,-480.0,0.00016345,2]
[383603493,1757023838700,-480.0,0.00016345,2]
[383603494,1757023838709,-480.0,0.00016345,2]
[383603496,1757023838718,-480.0,0.00016345,2]
[383603498,1757023838728,-480.0,0.00016345,2]
[383603499,1757023838737,-587.31,0.00016345,2]
[383603501,1757023838746,-43.87560343,0.00016345,2]
[383603503,1757023838758,-436.12439657,0.00016345,2]
[383603504,1757023838767,-131.21897028,0.00016345,2]
[383603506,1757023838779,-153.68265635,0.00016345,2]
[383603507,1757023838789,-480.0,0.00016345,2]
[383603508,1757023838798,-4.86734365,0.00016345,2]
[383603546,1757023840631,-475.13265635,0.00016345,2]
[383603548,1757023840641,-480.0,0.00016345,2]
[383603550,1757023840651,-480.0,0.00016345,2]
[383603552,1757023840660,-480.0,0.00016345,2]
[383603554,1757023840669,-480.0,0.00016345,2]
[383603556,1757023840679,-480.0,0.00016345,2]
[383603558,1757023840689,-151.0,0.00016345,2]
[383603560,1757023840699,-151.0,0.00016345,2]
[383603562,1757023840709,-151.0,0.00016345,2]
[383603564,1757023840718,-480.0,0.00016345,2]
[383603566,1757023840729,-480.0,0.00016346,2]
[383603568,1757023840739,-780.91,0.00016346,2]
[383603570,1757023840748,-480.0,0.00016346,2]
[383603572,1757023840757,-480.0,0.00016347,2]
[383603574,1757023840768,-151.0,0.00016347,2]
[383603576,1757023840778,-151.0,0.00016347,2]
[383603578,1757023840787,-151.0,0.00016362,2]
[383603580,1757023840796,-640.14728515,0.000164,2]
[383603582,1757023840805,-151.0,0.000164,2]
[383603584,1757023840814,-151.0,0.000164,2]
[383603586,1757023840823,-209.00330949,0.00016438,2]
[383603588,1757023840834,-437.05674901,0.00016538,2]
[383603715,1757023843717,-480.0,0.00015796,2]
[383603716,1757023843727,-480.0,0.0001607,2]
[383603717,1757023843737,-480.0,0.00016344,2]
[383603718,1757023843748,-62.94325099,0.00016538,2]
[383603719,1757023843757,-500.0,0.00016538,2]
[383603720,1757023843767,-500.0,0.00016548,2]
[383603721,1757023843776,-480.0,0.00016618,2]
[383603722,1757023843786,-480.0,0.00016618,2]
[383603723,1757023843797,-219.86900821,0.00016618,2]
[383603724,1757023843808,-540.11,0.00016618,2]
[383603725,1757023843817,-480.0,0.00016618,2]
[383603726,1757023843826,-480.0,0.00016618,2]
[383603727,1757023843837,-381.5,0.00016618,2]
[383603728,1757023843846,-480.0,0.00016618,2]
[383603729,1757023843857,-321.33,0.00016618,2]
[383603730,1757023843867,-480.0,0.00016619,2]
[383603731,1757023843877,-480.0,0.00016619,2]
[383603732,1757023843888,-480.0,0.00016619,2]
[383603733,1757023843898,-587.31,0.00016619,2]
[383603734,1757023843907,-480.0,0.00016619,2]
[383603735,1757023843918,-480.0,0.00016619,2]
[383603736,1757023843927,-480.0,0.00016619,2]
[383603737,1757023843937,-480.0,0.00016619,2]
[383603738,1757023843947,-480.0,0.00016619,2]
[383603739,1757023843956,-527.91,0.00016619,2]
[383603740,1757023843965,-480.0,0.0001662,2]
[383603741,1757023843975,-780.91,0.0001662,2]
[383603742,1757023843984,-480.0,0.0001662,2]
[383603743,1757023843995,-480.0,0.00016621,2]
[383603744,1757023844005,-319.59476835,0.0001689,2]
[383603745,1757023844015,-689.37743141,0.0001689,2]
[383603746,1757023844024,-689.37743141,0.0001689,2]
[383603747,1757023844033,-689.37743141,0.0001689,2]
[383603748,1757023844042,-689.37743141,0.0001689,2]
[383603749,1757023844052,-689.37743141,0.0001689,2]
[383603750,1757023844061,-689.37743141,0.0001689,2]
[383603751,1757023844071,-685.64782646,0.0001689,2]
[383603752,1757023844082,-3.72960495,0.0001689,2]
[383603753,1757023844091,-537.79417344,0.0001689,2]
[383603754,1757023844103,-151.58325797,0.0001689,2]
[383603755,1757023844112,-689.37743141,0.0001689,2]
[383603756,1757023844121,-177.97617274,0.0001689,2]
[383603772,1757023846692,-480.0,0.00015796,2]
[383603773,1757023846702,-480.0,0.00016618,2]
[383603774,1757023846712,-511.40125867,0.0001689,2]
[383603775,1757023846722,-689.37743141,0.0001689,2]
[383603776,1757023846731,-689.37743141,0.0001689,2]
[383603777,1757023846741,-689.37743141,0.0001689,2]
[383603778,1757023846750,-375.0962816,0.00016892,2]
[383603779,1757023846913,-104.9037184,0.00016892,2]
[383603781,1757023846923,-480.0,0.00016892,2]
[383603782,1757023846933,-480.0,0.00016892,2]
[383603783,1757023846943,-480.0,0.00016892,2]
[383603784,1757023846954,-480.0,0.00016892,2]
[383603785,1757023846965,-480.0,0.00016892,2]
[383603787,1757023846974,-480.0,0.00016893,2]
[383603788,1757023846984,-480.0,0.00016893,2]
[383603789,1757023846995,-480.0,0.00016893,2]
[383603790,1757023847004,-13.26749796,0.00016893,2]
[383603795,1757024463427,1254.12871306,0.000144,4]
[383603803,1757024832089,-794.6656526,0.00014795,2]
[383603804,1757024832110,-68.96497939,0.00015696,2]
[383603806,1757024848272,-493.60979876,0.00013699,2]
[383603807,1757024849107,-104.62022224,0.00013699,2]
[383603808,1757024849128,-300.0,0.0001579,2]
[383603809,1757024849150,-203.15181488,0.00015791,2]
[383603810,1757024849171,-217.5338025,0.00015791,2]
[383603811,1757024849193,-417.15472785,0.00015791,2]
[383603812,1757024849216,-160.0,0.00015791,2]
[383603813,1757024849239,-160.0,0.00015791,2]